[Event "Titled Tuesday Blitz November 07 Early 2023"]
[White "Pranav, V"]
[Black "Khismatullin, Denis"]
[WhiteFideId "25060783"]
[BlackFideId "4142578"]
[WhiteElo "3077"]
[BlackElo "2953"]
[Result "1/2-1/2"]
[Round "10"]
[TimeControl "180+1"]
[Date "2023.11.07"]
[WhiteClock "0:00:03"]
[BlackClock "0:00:07"]
[Board "4"]

1. e4 {[%clk 0:03:00]}  c5 {[%clk 0:02:59]} 2. Nf3 {[%clk 0:03:01]}  e6 {[%clk 0:03:00]} 3. d4 {[%clk 0:03:01]}  cxd4 {[%clk 0:03:00]} 4. Nxd4 {[%clk 0:03:02]}  Nf6 {[%clk 0:03:01]} 5. Nc3 {[%clk 0:03:02]}  Nc6 {[%clk 0:03:01]} 6. Ndb5 {[%clk 0:03:00]}  d6 {[%clk 0:03:01]} 7. Bf4 {[%clk 0:02:59]}  e5 {[%clk 0:03:01]} 8. Bg5 {[%clk 0:03:00]}  a6 {[%clk 0:03:02]} 9. Na3 {[%clk 0:03:01]}  b5 {[%clk 0:03:02]} 10. Nab1 {[%clk 0:03:01]}  Be7 {[%clk 0:03:00]} 11. Bxf6 {[%clk 0:03:02]}  Bxf6 {[%clk 0:03:00]} 12. a4 {[%clk 0:03:02]}  b4 {[%clk 0:03:00]} 13. Nd5 {[%clk 0:03:03]}  O-O {[%clk 0:02:59]} 14. Bc4 {[%clk 0:03:04]}  a5 {[%clk 0:02:56]} 15. O-O {[%clk 0:03:03]}  Bg5 {[%clk 0:02:56]} 16. c3 {[%clk 0:02:53]}  Be6 {[%clk 0:02:51]} 17. Qd3 {[%clk 0:02:50]}  Rc8 {[%clk 0:02:46]} 18. Nd2 {[%clk 0:02:33]}  bxc3 {[%clk 0:02:41]} 19. bxc3 {[%clk 0:02:34]}  Ne7 {[%clk 0:02:30]} 20. Nf3 {[%clk 0:02:24]}  Nxd5 {[%clk 0:02:22]} 21. Bxd5 {[%clk 0:02:25]}  Bxd5 {[%clk 0:02:20]} 22. Qxd5 {[%clk 0:02:26]}  Rc5 {[%clk 0:02:08]} 23. Qd3 {[%clk 0:02:25]}  Be7 {[%clk 0:02:02]} 24. Rfb1 {[%clk 0:01:55]}  d5 {[%clk 0:01:50]} 25. exd5 {[%clk 0:01:43]}  Qxd5 {[%clk 0:01:40]} 26. Qxd5 {[%clk 0:01:27]}  Rxd5 {[%clk 0:01:41]} 27. Rb5 {[%clk 0:01:27]}  Rfd8 {[%clk 0:01:40]} 28. Kf1 {[%clk 0:01:25]}  f6 {[%clk 0:01:15]} 29. Ke2 {[%clk 0:01:19]}  Kf7 {[%clk 0:01:09]} 30. Rxd5 {[%clk 0:01:15]}  Rxd5 {[%clk 0:01:08]} 31. Rb1 {[%clk 0:01:16]}  Rc5 {[%clk 0:01:00]} 32. Kd3 {[%clk 0:01:14]}  f5 {[%clk 0:00:52]} 33. Kc2 {[%clk 0:00:57]}  e4 {[%clk 0:00:47]} 34. Nd4 {[%clk 0:00:44]}  Bf6 {[%clk 0:00:47]} 35. Ne2 {[%clk 0:00:44]}  f4 {[%clk 0:00:34]} 36. Rb5 {[%clk 0:00:43]}  Rxb5 {[%clk 0:00:28]} 37. axb5 {[%clk 0:00:44]}  g5 {[%clk 0:00:27]} 38. Kb3 {[%clk 0:00:39]}  Ke6 {[%clk 0:00:26]} 39. Ka4 {[%clk 0:00:38]}  Kd5 {[%clk 0:00:23]} 40. b6 {[%clk 0:00:29]}  Kc6 {[%clk 0:00:20]} 41. Kxa5 {[%clk 0:00:23]}  Bd8 {[%clk 0:00:19]} 42. Nd4+ {[%clk 0:00:23]}  Kb7 {[%clk 0:00:20]} 43. Kb5 {[%clk 0:00:18]}  Bxb6 {[%clk 0:00:20]} 44. Kc4 {[%clk 0:00:18]}  g4 {[%clk 0:00:17]} 45. Nf5 {[%clk 0:00:04]}  Bxf2 {[%clk 0:00:13]} 46. Nd6+ {[%clk 0:00:04]}  Kc6 {[%clk 0:00:14]} 47. Nxe4 {[%clk 0:00:05]}  Bg1 {[%clk 0:00:14]} 48. h4 {[%clk 0:00:02]}  f3 {[%clk 0:00:10]} 49. gxf3 {[%clk 0:00:02]}  gxf3 {[%clk 0:00:11]} 50. Kd3 {[%clk 0:00:03]}  Kd5 {[%clk 0:00:10]} 51. Ng5 {[%clk 0:00:03]}  f2 {[%clk 0:00:09]} 52. Ke2 {[%clk 0:00:04]}  h5 {[%clk 0:00:09]} 53. Nh3 {[%clk 0:00:03]}  Bh2 {[%clk 0:00:07]} 54. Kxf2 {[%clk 0:00:02]}  Be5 {[%clk 0:00:07]} 55. Kf3 {[%clk 0:00:01]}  Bxc3 {[%clk 0:00:07]} 56. Nf4+ {[%clk 0:00:02]}  Ke5 {[%clk 0:00:07]} 57. Nxh5 {[%clk 0:00:03]}  Be1 {[%clk 0:00:07]} 58. Kg4 {[%clk 0:00:03]}  Bxh4 {[%clk 0:00:07]} 1/2-1/2


[Site "https://www.chess.com"]

[Event "Titled Tuesday Blitz November 07 Early 2023"]
[White "Xiong, Jeffery"]
[Black "Aradhya, Garg"]
[WhiteFideId "2047640"]
[BlackFideId "25006746"]
[WhiteElo "3017"]
[BlackElo "2750"]
[Result "1-0"]
[Round "10"]
[TimeControl "180+1"]
[Date "2023.11.07"]
[WhiteClock "0:00:22"]
[BlackClock "0:00:09"]
[Board "5"]

1. d4 {[%clk 0:03:00]}  d5 {[%clk 0:03:00]} 2. c4 {[%clk 0:03:01]}  c6 {[%clk 0:03:00]} 3. Nf3 {[%clk 0:02:59]}  Nf6 {[%clk 0:03:00]} 4. Nc3 {[%clk 0:03:00]}  dxc4 {[%clk 0:03:00]} 5. a4 {[%clk 0:03:01]}  Bf5 {[%clk 0:03:00]} 6. e3 {[%clk 0:03:00]}  e6 {[%clk 0:03:00]} 7. Bxc4 {[%clk 0:03:00]}  Bb4 {[%clk 0:03:01]} 8. O-O {[%clk 0:03:01]}  O-O {[%clk 0:03:01]} 9. Qe2 {[%clk 0:02:52]}  Ne4 {[%clk 0:03:01]} 10. Na2 {[%clk 0:02:44]}  Bd6 {[%clk 0:02:56]} 11. b4 {[%clk 0:02:41]}  Nd7 {[%clk 0:02:55]} 12. Bb2 {[%clk 0:02:41]}  Ndf6 {[%clk 0:02:45]} 13. b5 {[%clk 0:02:35]}  Qe7 {[%clk 0:02:39]} 14. bxc6 {[%clk 0:02:29]}  bxc6 {[%clk 0:02:40]} 15. Nc3 {[%clk 0:02:27]}  Rab8 {[%clk 0:02:30]} 16. Rfc1 {[%clk 0:02:24]}  Rb4 {[%clk 0:02:27]} 17. Nxe4 {[%clk 0:02:15]}  Bxe4 {[%clk 0:02:19]} 18. Bc3 {[%clk 0:02:15]}  Rb7 {[%clk 0:02:18]} 19. Nd2 {[%clk 0:02:10]}  Bg6 {[%clk 0:02:17]} 20. Ba6 {[%clk 0:02:10]}  Rbb8 {[%clk 0:02:14]} 21. e4 {[%clk 0:01:53]}  e5 {[%clk 0:02:02]} 22. f3 {[%clk 0:01:53]}  exd4 {[%clk 0:01:50]} 23. Bxd4 {[%clk 0:01:54]}  Bxh2+ {[%clk 0:01:51]} 24. Kxh2 {[%clk 0:01:49]}  Qd6+ {[%clk 0:01:51]} 25. e5 {[%clk 0:01:50]}  Qxd4 {[%clk 0:01:52]} 26. exf6 {[%clk 0:01:50]}  Rb2 {[%clk 0:01:52]} 27. Rd1 {[%clk 0:01:40]}  Rd8 {[%clk 0:01:52]} 28. Nf1 {[%clk 0:01:23]}  Rxe2 {[%clk 0:01:04]} 29. Rxd4 {[%clk 0:01:23]}  Rxd4 {[%clk 0:01:04]} 30. Bxe2 {[%clk 0:01:23]}  gxf6 {[%clk 0:01:04]} 31. a5 {[%clk 0:01:20]}  Kf8 {[%clk 0:01:03]} 32. Kg3 {[%clk 0:01:20]}  Ke7 {[%clk 0:01:04]} 33. Ne3 {[%clk 0:01:20]}  h5 {[%clk 0:01:02]} 34. Rc1 {[%clk 0:01:19]}  h4+ {[%clk 0:00:59]} 35. Kf2 {[%clk 0:01:19]}  Ra4 {[%clk 0:00:59]} 36. Rxc6 {[%clk 0:01:18]}  Rxa5 {[%clk 0:00:59]} 37. Bc4 {[%clk 0:01:19]}  f5 {[%clk 0:00:52]} 38. Nd5+ {[%clk 0:01:11]}  Kd7 {[%clk 0:00:49]} 39. Rf6 {[%clk 0:01:11]}  Rc5 {[%clk 0:00:47]} 40. Bb3 {[%clk 0:01:09]}  Kd8 {[%clk 0:00:36]} 41. Ra6 {[%clk 0:01:08]}  Rb5 {[%clk 0:00:35]} 42. Bc4 {[%clk 0:01:06]}  Rc5 {[%clk 0:00:35]} 43. Ba2 {[%clk 0:01:03]}  Rc2+ {[%clk 0:00:34]} 44. Kg1 {[%clk 0:01:03]}  h3 {[%clk 0:00:33]} 45. gxh3 {[%clk 0:01:04]}  Bh5 {[%clk 0:00:34]} 46. Nf4 {[%clk 0:00:57]}  Bxf3 {[%clk 0:00:33]} 47. Rxa7 {[%clk 0:00:57]}  f6 {[%clk 0:00:27]} 48. Bd5 {[%clk 0:00:51]}  Be4 {[%clk 0:00:22]} 49. Ra4 {[%clk 0:00:48]}  Rc1+ {[%clk 0:00:18]} 50. Kf2 {[%clk 0:00:48]}  Rc2+ {[%clk 0:00:18]} 51. Kg3 {[%clk 0:00:48]}  Rc3+ {[%clk 0:00:17]} 52. Kh2 {[%clk 0:00:39]}  Rc2+ {[%clk 0:00:17]} 53. Kg1 {[%clk 0:00:40]}  Rc1+ {[%clk 0:00:17]} 54. Kf2 {[%clk 0:00:38]}  Rc2+ {[%clk 0:00:17]} 55. Ke1 {[%clk 0:00:38]}  Bxd5 {[%clk 0:00:16]} 56. Nxd5 {[%clk 0:00:38]}  Rh2 {[%clk 0:00:16]} 57. Nf4 {[%clk 0:00:38]}  Ke7 {[%clk 0:00:16]} 58. Ra5 {[%clk 0:00:37]}  Rb2 {[%clk 0:00:15]} 59. Rxf5 {[%clk 0:00:37]}  Kf7 {[%clk 0:00:14]} 60. Kf1 {[%clk 0:00:35]}  Ra2 {[%clk 0:00:13]} 61. Kg1 {[%clk 0:00:35]}  Ra6 {[%clk 0:00:13]} 62. Kg2 {[%clk 0:00:34]}  Ra2+ {[%clk 0:00:13]} 63. Kg3 {[%clk 0:00:35]}  Ra3+ {[%clk 0:00:13]} 64. Kg4 {[%clk 0:00:35]}  Ra4 {[%clk 0:00:14]} 65. Rb5 {[%clk 0:00:35]}  Ra7 {[%clk 0:00:10]} 66. Kf5 {[%clk 0:00:35]}  Re7 {[%clk 0:00:11]} 67. Rd5 {[%clk 0:00:27]}  Rc7 {[%clk 0:00:11]} 68. Rd6 {[%clk 0:00:26]}  Rc5+ {[%clk 0:00:11]} 69. Nd5 {[%clk 0:00:26]}  Kg7 {[%clk 0:00:10]} 70. Rd7+ {[%clk 0:00:22]}  Kh6 {[%clk 0:00:11]} 71. Kxf6 {[%clk 0:00:23]}  Kh5 {[%clk 0:00:09]} 72. Rh7# {[%clk 0:00:22]} 1-0


[Site "https://www.chess.com"]

[Event "Titled Tuesday Blitz November 07 Early 2023"]
[White "Andreikin, Dmitry"]
[Black "Kukhmazov, Arsen"]
[WhiteFideId "4158814"]
[BlackFideId "24108260"]
[WhiteElo "3108"]
[BlackElo "2916"]
[Result "1-0"]
[Round "10"]
[TimeControl "180+1"]
[Date "2023.11.07"]
[WhiteClock "0:00:54"]
[BlackClock "0:00:00"]
[Board "6"]

1. d4 {[%clk 0:03:00]}  Nf6 {[%clk 0:02:59]} 2. c4 {[%clk 0:03:00]}  e6 {[%clk 0:03:00]} 3. Nf3 {[%clk 0:03:00]}  d5 {[%clk 0:03:00]} 4. Bg5 {[%clk 0:03:00]}  dxc4 {[%clk 0:03:00]} 5. e4 {[%clk 0:03:00]}  c5 {[%clk 0:03:00]} 6. Nc3 {[%clk 0:02:57]}  cxd4 {[%clk 0:02:57]} 7. Qxd4 {[%clk 0:02:58]}  Qxd4 {[%clk 0:02:52]} 8. Nxd4 {[%clk 0:02:59]}  a6 {[%clk 0:02:19]} 9. Bxc4 {[%clk 0:02:58]}  Bb4 {[%clk 0:02:11]} 10. f3 {[%clk 0:02:55]}  O-O {[%clk 0:01:37]} 11. Rc1 {[%clk 0:02:54]}  Nbd7 {[%clk 0:01:32]} 12. a3 {[%clk 0:02:52]}  Bd6 {[%clk 0:01:30]} 13. Be3 {[%clk 0:02:45]}  b5 {[%clk 0:01:29]} 14. Be2 {[%clk 0:02:39]}  Bb7 {[%clk 0:01:29]} 15. Kf2 {[%clk 0:02:36]}  Rfc8 {[%clk 0:01:28]} 16. Nb3 {[%clk 0:02:33]}  Bc7 {[%clk 0:01:17]} 17. Rhd1 {[%clk 0:02:30]}  Kf8 {[%clk 0:01:16]} 18. g4 {[%clk 0:02:22]}  Ke8 {[%clk 0:01:09]} 19. g5 {[%clk 0:02:17]}  Ng8 {[%clk 0:01:09]} 20. Nxb5 {[%clk 0:02:14]}  Bxh2 {[%clk 0:01:01]} 21. Nd6+ {[%clk 0:01:32]}  Bxd6 {[%clk 0:01:00]} 22. Rxd6 {[%clk 0:01:30]}  Rxc1 {[%clk 0:00:58]} 23. Bxc1 {[%clk 0:01:31]}  Ne7 {[%clk 0:00:56]} 24. Na5 {[%clk 0:01:29]}  Bc8 {[%clk 0:00:53]} 25. b4 {[%clk 0:01:29]}  Ra7 {[%clk 0:00:45]} 26. Be3 {[%clk 0:01:11]}  Rc7 {[%clk 0:00:45]} 27. Nc4 {[%clk 0:01:08]}  Ng6 {[%clk 0:00:38]} 28. Rd2 {[%clk 0:01:08]}  Ke7 {[%clk 0:00:19]} 29. a4 {[%clk 0:01:06]}  e5 {[%clk 0:00:08]} 30. Nd6 {[%clk 0:01:02]}  Nf4 {[%clk 0:00:04]} 31. Nxc8+ {[%clk 0:00:57]}  Rxc8 {[%clk 0:00:05]} 32. Bxa6 {[%clk 0:00:57]}  Rc3 {[%clk 0:00:00]} 33. Bb5 {[%clk 0:00:54]} 1-0


[Site "https://www.chess.com"]

[Event "Titled Tuesday Blitz November 07 Early 2023"]
[White "Sethuraman, S.P."]
[Black "Nihal Sarin"]
[WhiteFideId "5021596"]
[BlackFideId "25092340"]
[WhiteElo "2914"]
[BlackElo "3104"]
[Result "1-0"]
[Round "10"]
[TimeControl "180+1"]
[Date "2023.11.07"]
[WhiteClock "0:00:31"]
[BlackClock "0:00:03"]
[Board "7"]

1. e4 {[%clk 0:03:00]}  a6 {[%clk 0:02:40]} 2. d4 {[%clk 0:03:00]}  e6 {[%clk 0:02:36]} 3. c4 {[%clk 0:02:59]}  d5 {[%clk 0:02:32]} 4. exd5 {[%clk 0:02:57]}  exd5 {[%clk 0:02:33]} 5. Nc3 {[%clk 0:02:57]}  Nf6 {[%clk 0:02:32]} 6. Nf3 {[%clk 0:02:57]}  Bd6 {[%clk 0:02:26]} 7. Bg5 {[%clk 0:02:51]}  dxc4 {[%clk 0:02:22]} 8. Bxc4 {[%clk 0:02:50]}  O-O {[%clk 0:02:22]} 9. O-O {[%clk 0:02:50]}  h6 {[%clk 0:02:23]} 10. Bh4 {[%clk 0:02:48]}  Nc6 {[%clk 0:02:24]} 11. Nd5 {[%clk 0:02:27]}  g5 {[%clk 0:02:16]} 12. Nxg5 {[%clk 0:02:02]}  Nxd5 {[%clk 0:02:15]} 13. Qh5 {[%clk 0:01:50]}  hxg5 {[%clk 0:01:12]} 14. Bxg5 {[%clk 0:01:50]}  Bxh2+ {[%clk 0:01:13]} 15. Kxh2 {[%clk 0:01:47]}  Qd6+ {[%clk 0:01:13]} 16. g3 {[%clk 0:01:40]}  Nxd4 {[%clk 0:00:46]} 17. Rad1 {[%clk 0:01:31]}  c5 {[%clk 0:00:34]} 18. Rh1 {[%clk 0:01:12]}  Bf5 {[%clk 0:00:18]} 19. Kg1 {[%clk 0:01:09]}  f6 {[%clk 0:00:18]} 20. Bxd5+ {[%clk 0:00:51]}  Ne6 {[%clk 0:00:13]} 21. Qh8+ {[%clk 0:00:39]}  Kf7 {[%clk 0:00:13]} 22. Qxf6+ {[%clk 0:00:39]}  Ke8 {[%clk 0:00:14]} 23. Bc6+ {[%clk 0:00:39]}  bxc6 {[%clk 0:00:13]} 24. Rxd6 {[%clk 0:00:39]}  Rxf6 {[%clk 0:00:14]} 25. Bxf6 {[%clk 0:00:39]}  Kf7 {[%clk 0:00:14]} 26. Bc3 {[%clk 0:00:38]}  Be4 {[%clk 0:00:13]} 27. Rh5 {[%clk 0:00:37]}  Bd5 {[%clk 0:00:05]} 28. Rd7+ {[%clk 0:00:35]}  Kg6 {[%clk 0:00:05]} 29. Re5 {[%clk 0:00:32]}  c4 {[%clk 0:00:03]} 30. Rdxd5 {[%clk 0:00:31]} 1-0


[Site "https://www.chess.com"]

[Event "Titled Tuesday Blitz November 07 Early 2023"]
[White "Sychev, Klementy"]
[Black "Elsa167"]
[WhiteFideId "4114060"]
[WhiteElo "2861"]
[BlackElo "2987"]
[Result "1-0"]
[Round "10"]
[TimeControl "180+1"]
[Date "2023.11.07"]
[WhiteClock "0:00:34"]
[BlackClock "0:00:13"]
[Board "10"]

1. e4 {[%clk 0:03:00]}  e6 {[%clk 0:02:58]} 2. d4 {[%clk 0:02:59]}  d5 {[%clk 0:02:59]} 3. e5 {[%clk 0:03:00]}  c5 {[%clk 0:02:59]} 4. c3 {[%clk 0:03:01]}  Nc6 {[%clk 0:03:00]} 5. Nf3 {[%clk 0:03:01]}  Qb6 {[%clk 0:03:00]} 6. Bd3 {[%clk 0:03:01]}  Bd7 {[%clk 0:02:53]} 7. dxc5 {[%clk 0:03:01]}  Bxc5 {[%clk 0:02:49]} 8. O-O {[%clk 0:03:01]}  Qc7 {[%clk 0:02:48]} 9. b4 {[%clk 0:02:52]}  Bb6 {[%clk 0:02:47]} 10. Bf4 {[%clk 0:02:36]}  Nge7 {[%clk 0:02:45]} 11. Qe2 {[%clk 0:02:31]}  a6 {[%clk 0:02:36]} 12. Bg3 {[%clk 0:02:21]}  Rc8 {[%clk 0:02:19]} 13. Nbd2 {[%clk 0:02:14]}  Na7 {[%clk 0:02:01]} 14. c4 {[%clk 0:02:09]}  dxc4 {[%clk 0:01:28]} 15. Nxc4 {[%clk 0:02:08]}  O-O {[%clk 0:01:17]} 16. Nd6 {[%clk 0:02:02]}  Rb8 {[%clk 0:01:01]} 17. Rac1 {[%clk 0:01:34]}  Bc6 {[%clk 0:00:51]} 18. Bxh7+ {[%clk 0:01:27]}  Kxh7 {[%clk 0:00:51]} 19. Ng5+ {[%clk 0:01:27]}  Kh6 {[%clk 0:00:42]} 20. Qg4 {[%clk 0:01:08]}  Ng6 {[%clk 0:00:18]} 21. Qh3+ {[%clk 0:01:02]}  Kxg5 {[%clk 0:00:18]} 22. Rc4 {[%clk 0:00:57]}  f5 {[%clk 0:00:17]} 23. exf6 {[%clk 0:00:49]}  Kxf6 {[%clk 0:00:15]} 24. Ne4+ {[%clk 0:00:38]}  Kf7 {[%clk 0:00:15]} 25. Bxc7 {[%clk 0:00:33]}  Bxc7 {[%clk 0:00:16]} 26. Ng5+ {[%clk 0:00:33]}  Kf6 {[%clk 0:00:13]} 27. Qxe6+ {[%clk 0:00:33]}  Kxg5 {[%clk 0:00:13]} 28. Rg4+ {[%clk 0:00:33]}  Kh5 {[%clk 0:00:13]} 29. Qxg6# {[%clk 0:00:34]} 1-0


[Site "https://www.chess.com"]

[Event "Titled Tuesday Blitz November 07 Early 2023"]
[White "Tsydypov, Zhamsaran"]
[Black "Yanchenko, Roman"]
[WhiteFideId "4108566"]
[BlackFideId "4137329"]
[WhiteElo "3004"]
[BlackElo "2853"]
[Result "1-0"]
[Round "10"]
[TimeControl "180+1"]
[Date "2023.11.07"]
[WhiteClock "0:00:43"]
[BlackClock "0:00:35"]
[Board "14"]

1. d4 {[%clk 0:03:00]}  d5 {[%clk 0:03:00]} 2. Nf3 {[%clk 0:03:00]}  Nf6 {[%clk 0:02:59]} 3. c4 {[%clk 0:03:01]}  c6 {[%clk 0:03:00]} 4. Nc3 {[%clk 0:03:00]}  a6 {[%clk 0:03:00]} 5. e3 {[%clk 0:03:00]}  Bf5 {[%clk 0:03:00]} 6. Qb3 {[%clk 0:02:57]}  Ra7 {[%clk 0:03:01]} 7. Be2 {[%clk 0:02:55]}  e6 {[%clk 0:03:01]} 8. Nh4 {[%clk 0:02:55]}  Be4 {[%clk 0:03:01]} 9. f3 {[%clk 0:02:52]}  dxc4 {[%clk 0:03:00]} 10. Bxc4 {[%clk 0:02:50]}  Bd5 {[%clk 0:03:00]} 11. g3 {[%clk 0:02:25]}  g5 {[%clk 0:02:55]} 12. Bxd5 {[%clk 0:02:25]}  cxd5 {[%clk 0:02:56]} 13. Ng2 {[%clk 0:02:25]}  Nc6 {[%clk 0:02:56]} 14. O-O {[%clk 0:02:24]}  h5 {[%clk 0:02:55]} 15. Kh1 {[%clk 0:02:04]}  h4 {[%clk 0:02:53]} 16. gxh4 {[%clk 0:02:04]}  gxh4 {[%clk 0:02:49]} 17. Nf4 {[%clk 0:02:04]}  Bd6 {[%clk 0:02:48]} 18. Nce2 {[%clk 0:02:03]}  Nh5 {[%clk 0:02:35]} 19. Nxh5 {[%clk 0:02:00]}  Rxh5 {[%clk 0:02:36]} 20. Bd2 {[%clk 0:01:57]}  Qf6 {[%clk 0:02:25]} 21. e4 {[%clk 0:01:53]}  Bc7 {[%clk 0:02:01]} 22. Rac1 {[%clk 0:01:44]}  Kd7 {[%clk 0:02:00]} 23. e5 {[%clk 0:01:41]}  Qf5 {[%clk 0:01:58]} 24. Nf4 {[%clk 0:01:37]}  Rh8 {[%clk 0:01:46]} 25. Be3 {[%clk 0:01:35]}  Rg8 {[%clk 0:01:43]} 26. Rf2 {[%clk 0:01:28]}  h3 {[%clk 0:01:36]} 27. Rfc2 {[%clk 0:01:12]}  Rg2 {[%clk 0:01:35]} 28. Nxg2 {[%clk 0:01:09]}  Qxf3 {[%clk 0:01:36]} 29. Rf2 {[%clk 0:01:02]}  Qe4 {[%clk 0:01:34]} 30. Rxf7+ {[%clk 0:00:59]}  Ke8 {[%clk 0:01:31]} 31. Rg7 {[%clk 0:00:55]}  hxg2+ {[%clk 0:01:08]} 32. Rxg2 {[%clk 0:00:55]}  Bd8 {[%clk 0:00:56]} 33. Bf2 {[%clk 0:00:52]}  b5 {[%clk 0:00:49]} 34. Rxc6 {[%clk 0:00:46]}  Rg7 {[%clk 0:00:49]} 35. Qh3 {[%clk 0:00:46]}  Qb1+ {[%clk 0:00:38]} 36. Bg1 {[%clk 0:00:46]}  Rxg2 {[%clk 0:00:37]} 37. Qxg2 {[%clk 0:00:44]}  Kd7 {[%clk 0:00:37]} 38. Rd6+ {[%clk 0:00:44]}  Kc7 {[%clk 0:00:37]} 39. Qg7+ {[%clk 0:00:43]}  Kc8 {[%clk 0:00:35]} 40. Qd7+ {[%clk 0:00:43]} 1-0


[Site "https://www.chess.com"]

[Event "Titled Tuesday Blitz November 07 Early 2023"]
[White "Yeletsky, Ivan"]
[Black "Suyarov, Mukhammadzokhid"]
[WhiteFideId "24180327"]
[BlackFideId "14210495"]
[WhiteElo "2935"]
[BlackElo "2826"]
[Result "1-0"]
[Round "10"]
[TimeControl "180+1"]
[Date "2023.11.07"]
[WhiteClock "0:00:16"]
[BlackClock "0:00:54"]
[Board "16"]

1. d4 {[%clk 0:03:00]}  e6 {[%clk 0:03:00]} 2. e4 {[%clk 0:02:59]}  d5 {[%clk 0:03:00]} 3. Nd2 {[%clk 0:02:59]}  c5 {[%clk 0:03:00]} 4. Ngf3 {[%clk 0:02:58]}  cxd4 {[%clk 0:03:00]} 5. Nxd4 {[%clk 0:02:58]}  Nf6 {[%clk 0:02:59]} 6. exd5 {[%clk 0:02:56]}  Qxd5 {[%clk 0:02:59]} 7. Nb5 {[%clk 0:02:56]}  Qd8 {[%clk 0:02:56]} 8. Nc3 {[%clk 0:02:46]}  Nc6 {[%clk 0:02:56]} 9. g3 {[%clk 0:02:43]}  e5 {[%clk 0:02:52]} 10. Bg2 {[%clk 0:02:04]}  Bg4 {[%clk 0:02:52]} 11. f3 {[%clk 0:02:04]}  Bf5 {[%clk 0:02:48]} 12. O-O {[%clk 0:02:03]}  Bc5+ {[%clk 0:02:48]} 13. Kh1 {[%clk 0:02:03]}  O-O {[%clk 0:02:48]} 14. Nde4 {[%clk 0:02:00]}  Bxe4 {[%clk 0:02:42]} 15. Nxe4 {[%clk 0:01:35]}  Nxe4 {[%clk 0:02:39]} 16. fxe4 {[%clk 0:01:36]}  Qxd1 {[%clk 0:02:38]} 17. Rxd1 {[%clk 0:01:37]}  Rad8 {[%clk 0:02:39]} 18. Bg5 {[%clk 0:01:30]}  f6 {[%clk 0:02:38]} 19. Bd2 {[%clk 0:01:30]}  Kf7 {[%clk 0:02:30]} 20. c3 {[%clk 0:01:22]}  a5 {[%clk 0:02:28]} 21. a4 {[%clk 0:01:20]}  Ke7 {[%clk 0:02:17]} 22. Bf1 {[%clk 0:01:17]}  h6 {[%clk 0:02:10]} 23. Be1 {[%clk 0:00:54]}  g6 {[%clk 0:01:52]} 24. Bd2 {[%clk 0:00:49]}  Rh8 {[%clk 0:01:51]} 25. Bh3 {[%clk 0:00:40]}  Rd6 {[%clk 0:01:42]} 26. Be1 {[%clk 0:00:36]}  Rhd8 {[%clk 0:01:42]} 27. Rxd6 {[%clk 0:00:36]}  Rxd6 {[%clk 0:01:43]} 28. Kg2 {[%clk 0:00:31]}  Rd3 {[%clk 0:01:35]} 29. Bc8 {[%clk 0:00:31]}  Nd8 {[%clk 0:01:27]} 30. Bg4 {[%clk 0:00:25]}  h5 {[%clk 0:01:19]} 31. Be2 {[%clk 0:00:20]}  Rd6 {[%clk 0:01:12]} 32. Rd1 {[%clk 0:00:20]}  Rb6 {[%clk 0:01:10]} 33. Bb5 {[%clk 0:00:20]}  Rd6 {[%clk 0:01:07]} 34. Rxd6 {[%clk 0:00:19]}  Kxd6 {[%clk 0:01:06]} 35. Be8 {[%clk 0:00:19]}  g5 {[%clk 0:00:59]} 36. Bxh5 {[%clk 0:00:20]}  Be3 {[%clk 0:01:00]} 37. Kf3 {[%clk 0:00:19]}  Bc1 {[%clk 0:01:00]} 38. b4 {[%clk 0:00:20]}  axb4 {[%clk 0:00:58]} 39. cxb4 {[%clk 0:00:21]}  Nc6 {[%clk 0:00:59]} 40. Be8 {[%clk 0:00:20]}  Nd4+ {[%clk 0:00:59]} 41. Kg4 {[%clk 0:00:21]}  Ke7 {[%clk 0:00:59]} 42. Bb5 {[%clk 0:00:18]}  Nc2 {[%clk 0:00:59]} 43. Bc3 {[%clk 0:00:18]}  Ne3+ {[%clk 0:00:58]} 44. Kh5 {[%clk 0:00:19]}  Nf1 {[%clk 0:00:54]} 45. Bxf1 {[%clk 0:00:16]} 1-0


[Site "https://www.chess.com"]

[Event "Titled Tuesday Blitz November 07 Early 2023"]
[White "Rostovtsev, Dmitry"]
[Black "Materia, Marco"]
[WhiteFideId "34278320"]
[BlackFideId "45150451"]
[WhiteElo "2931"]
[BlackElo "2816"]
[Result "1-0"]
[Round "10"]
[TimeControl "180+1"]
[Date "2023.11.07"]
[WhiteClock "0:00:04"]
[BlackClock "0:00:03"]
[Board "17"]

1. d4 {[%clk 0:03:00]}  Nf6 {[%clk 0:02:59]} 2. c4 {[%clk 0:02:58]}  e6 {[%clk 0:03:00]} 3. Nc3 {[%clk 0:02:58]}  d5 {[%clk 0:02:58]} 4. cxd5 {[%clk 0:02:59]}  exd5 {[%clk 0:02:58]} 5. Bf4 {[%clk 0:03:00]}  Be7 {[%clk 0:02:58]} 6. e3 {[%clk 0:02:59]}  O-O {[%clk 0:02:57]} 7. Nge2 {[%clk 0:02:46]}  c6 {[%clk 0:02:54]} 8. Ng3 {[%clk 0:02:45]}  Re8 {[%clk 0:02:50]} 9. Bd3 {[%clk 0:02:43]}  Nbd7 {[%clk 0:02:49]} 10. Qc2 {[%clk 0:02:03]}  Nf8 {[%clk 0:02:47]} 11. O-O-O {[%clk 0:01:42]}  Bd6 {[%clk 0:02:10]} 12. Bxd6 {[%clk 0:01:34]}  Qxd6 {[%clk 0:02:11]} 13. Kb1 {[%clk 0:01:34]}  a5 {[%clk 0:02:02]} 14. Na4 {[%clk 0:01:28]}  Bg4 {[%clk 0:01:53]} 15. Rc1 {[%clk 0:01:26]}  Ng6 {[%clk 0:01:27]} 16. h3 {[%clk 0:01:23]}  Be6 {[%clk 0:01:25]} 17. Qc5 {[%clk 0:01:23]}  Qc7 {[%clk 0:01:22]} 18. Qb6 {[%clk 0:01:17]}  Rac8 {[%clk 0:00:53]} 19. Qxc7 {[%clk 0:01:01]}  Rxc7 {[%clk 0:00:53]} 20. Rc5 {[%clk 0:01:02]}  Ra8 {[%clk 0:00:47]} 21. Nb6 {[%clk 0:01:03]}  Ra7 {[%clk 0:00:48]} 22. Rhc1 {[%clk 0:01:03]}  Ne7 {[%clk 0:00:43]} 23. R5c3 {[%clk 0:00:49]}  Nd7 {[%clk 0:00:43]} 24. Nxd7 {[%clk 0:00:46]}  Rxd7 {[%clk 0:00:41]} 25. a4 {[%clk 0:00:41]}  Nc8 {[%clk 0:00:39]} 26. Ne2 {[%clk 0:00:37]}  Nd6 {[%clk 0:00:31]} 27. Ng3 {[%clk 0:00:19]}  g6 {[%clk 0:00:25]} 28. b3 {[%clk 0:00:19]}  Kg7 {[%clk 0:00:24]} 29. Kb2 {[%clk 0:00:20]}  h5 {[%clk 0:00:22]} 30. Ne2 {[%clk 0:00:18]}  Bf5 {[%clk 0:00:22]} 31. Bxf5 {[%clk 0:00:17]}  Nxf5 {[%clk 0:00:22]} 32. Nf4 {[%clk 0:00:17]}  Rd6 {[%clk 0:00:22]} 33. Nd3 {[%clk 0:00:15]}  Nh4 {[%clk 0:00:21]} 34. g3 {[%clk 0:00:13]}  Nf3 {[%clk 0:00:20]} 35. h4 {[%clk 0:00:12]}  Rf6 {[%clk 0:00:20]} 36. R3c2 {[%clk 0:00:10]}  Nh2 {[%clk 0:00:20]} 37. Ne5 {[%clk 0:00:09]}  Nf3 {[%clk 0:00:18]} 38. Nd7 {[%clk 0:00:08]}  Rf5 {[%clk 0:00:17]} 39. Kc3 {[%clk 0:00:06]}  f6 {[%clk 0:00:16]} 40. Nc5 {[%clk 0:00:05]}  Nh2 {[%clk 0:00:15]} 41. Kd3 {[%clk 0:00:03]}  Ng4 {[%clk 0:00:14]} 42. Rf1 {[%clk 0:00:02]}  b6 {[%clk 0:00:13]} 43. Ne6+ {[%clk 0:00:02]}  Kf7 {[%clk 0:00:13]} 44. Rxc6 {[%clk 0:00:02]}  Re7 {[%clk 0:00:13]} 45. Nf4 {[%clk 0:00:02]}  g5 {[%clk 0:00:13]} 46. hxg5 {[%clk 0:00:03]}  fxg5 {[%clk 0:00:13]} 47. Nxh5 {[%clk 0:00:02]}  Nxf2+ {[%clk 0:00:11]} 48. Ke2 {[%clk 0:00:03]}  Re8 {[%clk 0:00:04]} 49. Rxf2 {[%clk 0:00:03]}  Rxf2+ {[%clk 0:00:05]} 50. Kxf2 {[%clk 0:00:04]}  Rh8 {[%clk 0:00:03]} 51. g4 {[%clk 0:00:04]} 1-0


[Site "https://www.chess.com"]